bitfinex-derivatives/quotes_SOLF0:USTF0_20250228
["timestamp","ask_amount","ask_price","bid_price","bid_amount"]
[1740765941901,0.05308125,144.59,144.58,6.9171]
[1740765942202,5.5188,144.67,144.58,6.9171]
[1740765942802,6.9145,144.64,144.58,6.9171]
[1740765943105,5.5188,144.67,144.58,6.9171]
[1740765943408,0.0479666,144.64,144.61,0.05317014]
[1740765944505,6.9624666,144.64,144.61,0.05317014]
[1740765944904,0.0479666,144.64,144.61,0.05317014]
[1740765945605,0.0479666,144.64,144.61,6.96857014]
[1740765945806,0.0479666,144.64,144.61,0.05317014]
[1740765949207,28.10596365,144.76,144.62,13.36]
[1740765949406,1.795,144.75,144.63,1.7841]
[1740765949807,6.9108,144.72,144.63,1.7841]
[1740765950011,1.795,144.75,144.63,1.7841]
[1740765950306,0.04736783,144.7,144.68,0.04791568]
[1740765950510,1.795,144.75,144.68,0.04791568]
[1740765950711,0.04527683,144.7,144.68,0.04791568]
[1740765950911,6.9118,144.69,144.68,0.04791568]
[1740765951609,6.9144,144.64,144.62,13.36]
[1740765951809,13.36,144.73,144.62,13.36]
[1740765952007,3.7144,144.69,144.58,1.7841]
[1740765952208,6.916,144.61,144.58,1.7841]
[1740765952810,6.9599333,144.61,144.58,1.83116237]
[1740765953009,6.9599333,144.61,144.58,0.04706237]
[1740765953210,0.0439333,144.61,144.58,0.04706237]
[1740765953711,6.9166,144.59,144.58,0.04706237]
[1740765954011,0.0439333,144.61,144.51,15.1821]
[1740765954209,3.6027,144.62,144.5,45.24316459]
[1740765954408,3.6027,144.62,144.5,28.79405428]
[1740765955312,0.04656718,144.57,144.55,0.04706391]
[1740765955512,6.919,144.54,144.5,28.79405428]
[1740765956015,6.919,144.54,144.48,241.4817]
[1740765956207,6.9186,144.55,144.48,241.4817]
[1740765956407,3.6027,144.62,144.48,241.4817]
[1740765956408,3.6027,144.62,144.48,234.56]
[1740765956601,0.04522542,144.56,144.54,0.049192]
[1740765956806,3.6027,144.62,144.54,0.049192]
[1740765957003,0.04728246,144.56,144.54,0.049192]
[1740765957311,6.917,144.59,144.54,0.049192]
[1740765957510,6.917,144.59,144.52,6.9195]
[1740765957712,13.34,144.63,144.48,236.4086]
[1740765958113,13.34,144.63,144.54,6.919]
[1740765958313,0.04863306,144.57,144.54,6.97199559]
[1740765958514,13.34,144.63,144.53,13.34]
[1740765958717,0.04381509,144.57,144.55,6.9181]
[1740765959014,13.34,144.63,144.53,13.34]
[1740765959210,0.04894569,144.57,144.55,6.96378659]
[1740765959415,13.34,144.63,144.55,0.04568659]
[1740765959616,0.0486364,144.57,144.55,0.04568659]
[1740765959816,6.9163,144.6,144.55,0.04568659]
[1740765960012,13.34,144.64,144.56,115.74532913]
[1740765960214,6.9163,144.6,144.56,115.74532913]
[1740765960614,1.8117,144.63,144.59,191.34821347]
[1740765960815,6.9161,144.61,144.59,191.34821347]
[1740765961218,6.9161,144.6,144.59,191.39731565]
[1740765961425,6.9161,144.6,144.59,182.22311565]
[1740765961721,6.9161,144.6,144.59,0.04910218]
[1740765961922,0.05044746,144.61,144.59,0.04910218]
[1740765962125,6.9161,144.6,144.59,0.04910218]
[1740765962822,3.46371493,144.6,144.59,0.04910218]
[1740765963326,6.96624746,144.61,144.59,0.04910218]
[1740765963623,0.05044746,144.61,144.59,0.04910218]
[1740765964024,6.9161,144.6,144.59,44.29334484]
[1740765964223,0.05044746,144.61,144.59,44.29334484]
[1740765966624,0.05044746,144.61,144.6,97.23622769]
[1740765966825,13.34,144.68,144.6,97.23622769]
[1740765967220,6.9144,144.64,144.6,104.15202769]
[1740765967619,6.9144,144.64,144.6,97.23622769]
[1740765967829,6.9144,144.64,144.59,9.5640504]
[1740765968128,0.05125037,144.63,144.61,0.05324932]
[1740765968826,0.05125037,144.63,144.61,6.96854932]
[1740765969026,0.05125037,144.63,144.61,0.05324932]
[1740765969628,6.9134,144.66,144.61,0.05324932]
[1740765969926,3.6676,144.71,144.61,0.05324932]
[1740765970132,6.9123,144.68,144.6,11.4349504]
[1740765970631,6.9123,144.68,144.62,6.9148]
[1740765970929,0.05040878,144.65,144.63,13.38381608]
[1740765971125,6.912,144.69,144.63,20.29821608]
[1740765971327,6.912,144.69,144.67,28.69215122]
[1740765971729,6.9123,144.68,144.67,28.69215122]
[1740765972633,6.9128,144.67,144.66,62.00556952]
[1740765972832,6.9128,144.67,144.66,27.29456952]
[1740765973633,6.9133,144.66,144.65,52.14074132]
[1740765973832,6.9133,144.66,144.65,41.70594132]
[1740765974234,6.9133,144.66,144.65,3.35744132]
[1740765974532,6.9142,144.64,144.63,133.92041842]
[1740765974734,20.2542,144.64,144.63,133.92041842]
[1740765974934,23.7142,144.64,144.63,133.92041842]
[1740765975432,20.2542,144.64,144.63,133.92041842]
[1740765976030,6.9147,144.63,144.62,0.04946193]
[1740765987231,0.05266719,144.65,144.62,0.04946193]
[1740765988238,0.05266719,144.65,144.63,6.9144]
[1740765988723,0.05266719,144.65,144.62,0.04946193]
[1740765989137,20.2516,144.7,144.62,5.36726193]
[1740765989332,6.9116,144.7,144.62,5.36726193]
[1740765989531,6.9116,144.7,144.64,6.914]
[1740765989734,6.9116,144.7,144.62,5.3178]
[1740765989931,6.912,144.69,144.62,5.3178]
[1740765990137,0.05079329,144.67,144.64,0.04917724]
[1740765990340,0.05079329,144.67,144.64,6.96307724]
[1740765991739,0.05079329,144.67,144.64,0.04917724]
[1740765992838,6.9137,144.65,144.64,0.04917724]
[1740765993031,6.9137,144.65,144.64,7.724e-05]
[1740765993232,10.3737,144.65,144.64,7.724e-05]
[1740765993938,11.75634777,144.65,144.64,7.724e-05]
[1740765995936,8.29634777,144.65,144.64,7.724e-05]
[1740765996742,11.75634777,144.65,144.64,7.724e-05]
[1740765997141,8.29634777,144.65,144.64,7.724e-05]
[1740766000246,11.75634777,144.65,144.64,7.724e-05]
[1740766000446,8.29634777,144.65,144.64,7.724e-05]
[1740766001944,11.75634777,144.65,144.64,7.724e-05]
[1740766010752,8.29634777,144.65,144.64,7.724e-05]
[1740766010943,21.63634777,144.65,144.64,7.724e-05]
[1740766018047,374.74618211,144.9,144.64,13.34007724]
[1740766018245,582.80927317,145.02,144.65,20.69]
[1740766018451,562.11927317,145.11,144.67,41.4]
[1740766018647,562.11927317,145.11,144.68,1.26910238]
[1740766018854,69.91833773,145.06,144.68,1.26910238]
[1740766019052,540.81617932,145.11,145.1,6.8923]
[1740766019255,562.11927317,145.18,145.1,13.88]
[1740766019458,7.644e-05,145.12,145.1,17.32]
[1740766019657,562.11927317,145.18,145.1,13.88]
[1740766019851,562.11927317,145.18,145.11,5.64796548]
[1740766020059,562.11927317,145.18,145.12,5.64796548]
[1740766020257,562.11927317,145.18,145.13,5.64796548]
[1740766020458,221.04,145.26,145.14,5.64796548]
[1740766020653,34.51,145.16,145.14,5.64796548]
[1740766020859,27.59993029,145.16,145.15,5.64796548]
[1740766021261,62.10993029,145.16,145.15,6.16151721]
[1740766021560,62.10993029,145.16,145.15,12.35178132]
[1740766022060,291.75676802,145.16,145.15,3.68958132]
[1740766022555,221.04,145.24,145.15,287.04308206]
[1740766022755,34.51,145.21,145.15,283.35350074]
[1740766023061,34.51,145.21,145.17,0.04710785]
[1740766023263,34.51,145.2,145.17,0.04710785]
[1740766023454,27.59993029,145.21,145.17,0.04710785]
[1740766023455,62.10993029,145.21,145.17,0.04710785]
[1740766023864,221.04,145.24,145.17,0.04710785]
[1740766024057,11.44103229,145.21,145.17,0.04710785]
[1740766024459,27.59993029,145.21,145.17,0.04710785]
[1740766024661,220.62807905,145.24,145.18,110.33299304]
[1740766025657,127.84240954,145.24,145.18,110.33299304]
[1740766026467,127.84240954,145.24,145.19,110.33299304]
[1740766026763,220.72,145.32,145.19,110.33299304]
[1740766026964,1.37636776,145.31,145.2,0.05098486]
[1740766027158,1.37636776,145.31,145.19,110.33299304]
[1740766027365,1.37636776,145.31,145.24,0.05150134]
[1740766027560,1.37636776,145.31,145.29,392.46261631]
[1740766028163,13.92,145.3,145.29,381.95577072]
[1740766028363,13.92,145.3,145.27,228.17593972]
[1740766028558,1.37655723,145.29,145.27,228.17593972]
[1740766028863,13.88613569,145.3,145.05,1.06550654]
[1740766029165,10.44613569,145.3,145.07,13.92]
[1740766029364,6.8851,145.26,145.07,13.92]
[1740766029569,0.04891991,145.2,145.17,0.04371348]
[1740766029757,0.04891991,145.2,145.13,13.92]
[1740766029962,0.04916565,145.18,145.17,0.0528471]
[1740766032571,0.04916565,145.18,145.08,15.7682]
[1740766032864,13.9,145.19,145.08,15.7682]
[1740766033069,1.37760022,145.18,145.08,15.7682]
[1740766033674,0.04949056,145.14,145.12,0.04610677]
[1740766035876,1.37760022,145.18,145.12,0.04610677]
[1740766036880,1.37760022,145.18,145.13,13.84]
[1740766037083,0.05055665,145.16,145.13,13.84]
[1740766037480,1.37760022,145.18,145.13,20.7308]
[1740766037681,1.37760022,145.18,145.13,13.84]
[1740766038183,1.37760022,145.18,145.13,296.5691404]
[1740766038379,220.62,145.21,145.13,296.5691404]
[1740766038679,219.97081356,145.21,145.13,296.5691404]
[1740766038881,219.97081356,145.21,145.16,0.0529441]
[1740766039284,131.85033704,145.21,145.16,0.0529441]
[1740766040288,220.5,145.26,145.2,180.15130399]
[1740766040685,227.3847,145.26,145.22,0.04863642]
[1740766040984,234.3,145.26,145.22,0.04863642]
[1740766041581,48.95289109,145.26,145.22,3.642e-05]
[1740766042183,6.8861,145.23,145.22,3.642e-05]
[1740766042986,220.46,145.25,145.22,3.642e-05]
[1740766043783,6.8861,145.23,145.22,3.642e-05]
[1740766043993,206.53305629,145.25,145.22,411.80982829]
[1740766044684,6.8861,145.23,145.22,389.29282829]
[1740766044885,6.8861,145.23,145.22,164.1036983]
[1740766045091,13.76,145.24,145.22,142.8321983]
[1740766045794,6.8861,145.23,145.22,142.88183183]
[1740766046889,234.18,145.25,145.22,142.88183183]
[1740766047192,6.8861,145.23,145.22,94.80363183]
[1740766047387,3.44,145.23,145.22,55.76963183]
[1740766047786,10.3261,145.23,145.22,55.76963183]
[1740766048193,3.44,145.23,145.14,115.35790202]
[1740766048390,3.44,145.23,145.22,692.959313]
[1740766048583,6.8861,145.23,145.22,692.959313]
[1740766048893,3.44,145.23,145.13,96.15153796]
[1740766049094,234.18,145.25,145.13,96.15153796]
[1740766049295,0.04352361,145.19,145.17,0.05173837]
[1740766049490,13.76352361,145.19,145.17,0.05173837]
[1740766049696,17.16,145.19,145.17,0.05173837]
[1740766049891,17.21016054,145.19,145.17,0.05173837]
[1740766050095,6.8885,145.18,145.17,0.05173837]
[1740766050593,10.3285,145.18,145.17,0.05173837]
[1740766052294,10.3285,145.18,145.17,934.36640884]
[1740766052795,6.8885,145.18,145.17,934.36640884]
[1740766054894,0.05016054,145.19,145.17,934.36640884]
[1740766055801,0.05016054,145.19,145.17,1049.76365133]
[1740766056201,227.3253,145.25,145.17,1049.76365133]
[1740766056694,227.3253,145.25,145.18,9.51515328]
[1740766057497,227.3253,145.25,145.2,0.0460903]
[1740766057794,220.44,145.25,145.2,0.0460903]
[1740766057997,28.1818277,145.25,145.2,0.0460903]
[1740766058595,28.1818277,145.25,145.21,9.51515328]
[1740766058900,20.5248,145.26,145.21,9.51515328]
[1740766059100,21.90164152,145.26,145.21,9.51515328]
[1740766059300,15.01684152,145.26,145.21,9.51515328]
[1740766060395,15.01684152,145.26,145.22,15.56530369]
[1740766060595,1.37684152,145.26,145.23,6.05015041]
[1740766060798,6.884,145.28,145.22,15.61146121]
[1740766061002,6.884,145.28,145.23,6.0960449]
[1740766061201,6.8845,145.27,145.24,12.14800923]
[1740766061505,6.8845,145.27,145.25,6.08954098]
[1740766061699,6.8845,145.27,145.26,6.08954098]
[1740766062203,6.8845,145.27,145.25,15.96279907]
[1740766062399,6.8845,145.27,145.26,15.6479897]
[1740766062698,6.8845,145.27,145.26,31.61078877]
[1740766062904,6.8834,145.29,145.26,31.61078877]
[1740766063200,6.8834,145.29,145.27,5.98146064]
[1740766063403,6.8834,145.29,145.28,5.98146064]
[1740766063992,6.8834,145.29,145.28,12.07776857]
[1740766064401,220.48,145.31,145.28,6.09630793]
[1740766064801,6.8827,145.31,145.26,124.1023362]
[1740766065001,234.1988,145.38,145.26,124.1023362]
[1740766065002,13.54,145.36,145.26,124.1023362]
[1740766065404,220.44,145.38,145.26,124.1023362]
[1740766065604,220.44,145.38,145.26,137.6223362]
[1740766065807,13.52,145.37,145.26,137.6223362]
[1740766066107,6.8826,145.31,145.26,137.6223362]
[1740766066309,13.5,145.32,145.26,124.1023362]
[1740766066506,6.8842,145.28,145.26,0.0448242]
[1740766066703,13.5,145.32,145.26,0.0448242]
[1740766067006,6.8841,145.28,145.26,0.0448242]
[1740766067509,6.8831,145.3,145.26,0.0448242]
[1740766067705,90.10141366,145.44,145.26,0.0448242]
[1740766068010,6.882,145.32,145.26,3.5497]
[1740766068310,13.54,145.37,145.28,0.05128075]
[1740766068607,13.54,145.37,145.26,3.5497]
[1740766068810,13.06674309,145.37,145.31,0.04745249]
[1740766069312,6.8819,145.32,145.31,0.04745249]
[1740766069503,190.87053417,145.33,145.31,0.04745249]
[1740766069912,6.8819,145.32,145.31,0.04745249]
[1740766070313,190.87053417,145.33,145.31,0.04745249]
[1740766070914,197.75223417,145.33,145.31,0.04745249]
[1740766071210,190.87053417,145.33,145.31,0.04745249]
[1740766071611,6.8819,145.32,145.31,0.04745249]
[1740766072517,283.38588356,145.32,145.26,3.5497]
[1740766072819,6.883,145.3,145.26,3.5497]
[1740766073117,6.883,145.3,145.26,5.284]
[1740766073410,6.8839,145.28,145.26,5.284]
[1740766073617,6.92970514,145.28,145.26,5.33104443]
[1740766073808,0.04580514,145.28,145.26,5.33104443]
[1740766074314,6.8842,145.27,145.26,3.59674443]
[1740766075513,0.04580514,145.28,145.26,3.59674443]
[1740766076515,54.42330159,145.32,145.26,3.59674443]
[1740766076707,6.8836,145.29,145.26,3.59674443]
[1740766077010,54.42330159,145.32,145.26,3.59674443]
[1740766077214,6.884,145.28,145.26,3.59674443]
[1740766077414,54.42330159,145.32,145.26,3.59674443]
[1740766078012,6.8835,145.29,145.26,3.59674443]
[1740766078407,54.42330159,145.32,145.26,3.59674443]
[1740766078616,6.8829,145.3,145.26,5.46784443]
[1740766078817,40.96330159,145.32,145.27,6.884]
[1740766079118,6.8825,145.31,145.26,5.46784443]
[1740766079417,40.96330159,145.32,145.26,12.35224443]
[1740766079619,6.8831,145.3,145.26,18.88784443]
[1740766079918,40.96330159,145.32,145.26,18.88784443]
[1740766079919,32.32150159,145.32,145.3,6.8827]
[1740766080112,17.93080159,145.32,145.3,6.8827]
[1740766080418,51.20412699,145.35,145.3,0.04520674]
[1740766082316,383.4157612,145.41,145.32,6.8818]
[1740766082516,1.37551581,145.4,145.32,6.8818]
[1740766082710,1.37551581,145.4,145.35,0.05217779]
[1740766082916,6.8794,145.38,145.31,13.38]
[1740766083218,1.37551581,145.4,145.36,0.04816429]
[1740766083517,1.37551581,145.4,145.37,0.04669693]
[1740766083721,1.37551581,145.4,145.31,13.38]
[1740766083919,1.37551581,145.4,145.37,0.05297277]
[1740766084111,1.37551581,145.4,145.33,6.8811]
[1740766084416,1.37551581,145.4,145.37,0.04892058]
[1740766084818,6.879,145.38,145.37,0.04892058]
[1740766087718,6.879,145.38,145.31,13.38]
[1740766087719,1.37551581,145.4,145.33,8.74602857]
[1740766087918,6.8809,145.34,145.33,8.74602857]
[1740766088719,6.4975619,145.34,145.33,8.74602857]
[1740766089222,6.8814,145.33,145.32,0.04389004]
[1740766089822,0.04807929,145.35,145.32,0.04389004]
[1740766090522,6.92867929,145.35,145.32,0.04389004]
[1740766090819,0.04807929,145.35,145.32,0.04389004]
[1740766093127,0.04807929,145.35,145.32,6.92549004]
[1740766093424,0.04807929,145.35,145.32,0.04389004]
[1740766093618,0.04807929,145.35,145.33,6.8814]
[1740766095518,0.04807929,145.35,145.34,79.97533128]
[1740766095722,6.8796,145.37,145.34,79.97533128]
[1740766096124,13.32,145.39,145.34,79.97533128]
[1740766096425,14.69561042,145.39,145.34,79.97533128]
[1740766096626,14.69561042,145.39,145.34,193.93439563]
[1740766096828,14.69561042,145.39,145.35,0.05266158]
[1740766097030,1.37570504,145.38,145.35,0.05266158]
[1740766097219,6.8795,145.37,145.35,0.05266158]
[1740766097618,6.8795,145.37,145.36,156.14641816]
[1740766098828,6.8795,145.37,145.36,79.97533128]
[1740766100828,8.25490504,145.38,145.36,79.97533128]
[1740766103126,8.25490504,145.38,145.37,260.61766742]
[1740766105436,8.25490504,145.38,145.37,420.86016017]
[1740766106030,1.37570504,145.38,145.37,420.86016017]
[1740766108132,1.37570504,145.38,145.37,230.02647957]
[1740766108639,6.8782,145.4,145.37,230.02647957]
[1740766109136,1.8306,145.43,145.37,230.02647957]
[1740766109539,1.8306,145.43,145.39,0.04878292]
[1740766110237,1.8306,145.43,145.39,6.92728292]
[1740766110428,1.8306,145.43,145.39,0.04878292]
[1740766110938,1.8306,145.43,145.41,76.33491584]
[1740766112531,8.7204,145.44,145.41,76.33491584]
[1740766112532,6.8763,145.44,145.41,76.33491584]
[1740766113334,6.8769,145.43,145.41,76.33491584]
[1740766113540,220.42,145.45,145.42,41.55562313]
[1740766113737,3.6624,145.44,145.42,41.55562313]
[1740766113942,3.6624,145.44,145.42,41.60200254]
[1740766114136,6.8767,145.43,145.42,41.60200254]
[1740766114738,6.8767,145.43,145.42,28.69581252]
[1740766114937,6.8767,145.43,145.42,20.05821252]
[1740766115838,6.8771,145.42,145.41,76.33491584]
[1740766116037,6.8771,145.42,145.41,67.74925947]
[1740766116535,6.8771,145.42,145.41,0.05194363]
[1740766117540,15.22241607,145.44,145.41,0.05194363]
[1740766118139,6.8771,145.42,145.41,0.05194363]
[1740766124938,6.92091607,145.44,145.41,0.05194363]
[1740766125143,0.04441607,145.44,145.41,0.05194363]
[1740766125543,6.8769,145.43,145.41,0.05194363]
[1740766125743,0.04441607,145.44,145.41,0.05194363]
[1740766125951,6.8771,145.42,145.41,0.05194363]
[1740766126150,0.04441607,145.44,145.39,9.55342259]
[1740766126453,233.7,145.45,145.39,9.55342259]
[1740766126649,6.8781,145.4,145.39,9.55342259]
[1740766128255,6.8781,145.4,145.38,0.05210717]
[1740766128757,6.92352276,145.41,145.38,0.05210717]
[1740766129257,0.04582276,145.41,145.38,0.05210717]
[1740766129957,0.04582276,145.41,145.38,6.93110717]
[1740766130457,0.04582276,145.41,145.39,8.18115901]
[1740766130854,220.42,145.45,145.39,8.18115901]
[1740766131759,220.42,145.45,145.4,8.18115901]
[1740766131962,0.04860607,145.43,145.4,8.18115901]
[1740766132258,6.8776,145.42,145.41,0.05094701]
[1740766133157,0.04860607,145.43,145.41,8.23210602]
[1740766134857,0.04860607,145.43,145.42,89.99303199]
[1740766136564,0.04860607,145.43,145.42,8.18115901]
[1740766138165,0.04860607,145.43,145.42,17.75139816]
[1740766140064,0.04860607,145.43,145.42,166.57174593]
[1740766141767,6.92530607,145.43,145.42,166.57174593]
[1740766143569,6.92530607,145.43,145.42,8.18115901]
[1740766143768,0.04860607,145.43,145.42,8.18115901]
[1740766146267,0.04860607,145.43,145.42,40.89598692]
[1740766147469,6.8755,145.46,145.42,40.89598692]
[1740766148164,6.8763,145.44,145.42,40.89598692]
[1740766148468,6.8767,145.43,145.42,166.50484576]
[1740766148669,6.8767,145.43,145.42,166.55499045]
[1740766149763,6.8767,145.43,145.42,8.2313037]
[1740766151374,8.25193207,145.43,145.42,8.2313037]
[1740766152069,8.25193207,145.43,145.42,3.7e-06]
[1740766159077,11.74883207,145.43,145.42,3.7e-06]
[1740766159871,19.13513207,145.43,145.42,3.7e-06]
[1740766161274,22.57513207,145.43,145.42,3.7e-06]
[1740766167286,19.13513207,145.43,145.42,3.7e-06]
[1740766167680,28.68943207,145.43,145.42,3.7e-06]
[1740766167886,32.20493207,145.43,145.42,3.7e-06]
[1740766168187,35.64493207,145.43,145.42,3.7e-06]
[1740766170886,32.20493207,145.43,145.42,3.7e-06]
[1740766171586,252.40493207,145.43,145.42,3.7e-06]
[1740766173286,255.84493207,145.43,145.42,3.7e-06]
[1740766178990,248.96823207,145.43,145.29,13.02305292]
[1740766179295,6.8828,145.3,145.29,13.02305292]
[1740766180094,6.8828,145.3,145.29,9.55855292]
[1740766181191,6.8828,145.3,145.28,0.04518452]
[1740766181693,0.05275531,145.31,145.28,0.04518452]
[1740766181887,6.8833,145.29,145.28,0.04518452]
[1740766182994,0.05275531,145.31,145.28,0.04518452]
[1740766183196,6.883,145.3,145.28,0.04518452]
[1740766183593,0.05275531,145.31,145.28,0.04518452]
[1740766184095,1.42912307,145.31,145.28,0.04518452]
[1740766184586,1.37646249,145.3,145.28,0.04518452]
[1740766184790,6.8833,145.29,145.28,0.04518452]
[1740766185695,8.25985723,145.29,145.28,0.04518452]
[1740766185996,21.51985723,145.29,145.28,0.04518452]
[1740766186186,21.51985723,145.29,145.28,8.452e-05]
[1740766190901,6.883,145.3,145.28,8.452e-05]
[1740766191101,0.05275531,145.31,145.28,8.452e-05]
[1740766191700,6.8828,145.3,145.28,8.452e-05]
[1740766192195,0.05275531,145.31,145.28,8.452e-05]
[1740766192394,6.93535531,145.31,145.28,8.452e-05]
[1740766193402,6.8828,145.3,145.28,8.452e-05]
[1740766193900,0.05275531,145.31,145.28,8.452e-05]
[1740766194095,220.26,145.33,145.28,8.452e-05]
[1740766194601,220.26,145.33,145.28,6.88388452]
[1740766194797,220.26,145.33,145.29,3.5126]
[1740766195202,0.04826498,145.32,145.29,3.5126]
[1740766195799,6.93016498,145.32,145.29,3.5126]
[1740766196203,6.8827,145.31,145.29,3.5126]
[1740766196605,0.04826498,145.32,145.29,3.5126]
[1740766198808,6.93046498,145.32,145.29,3.5126]
[1740766199008,0.04826498,145.32,145.29,3.5126]
[1740766199309,6.8824,145.31,145.29,3.5126]
[1740766199605,0.04826498,145.32,145.29,3.5126]
[1740766200298,6.8824,145.31,145.29,3.5126]
[1740766200899,6.8828,145.3,145.29,3.5126]
[1740766202603,6.8833,145.29,145.28,8.452e-05]
[1740766202912,13.26,145.3,145.28,8.452e-05]
[1740766203109,20.1431,145.3,145.28,8.452e-05]
[1740766203416,13.26,145.3,145.28,8.452e-05]
[1740766203615,0.04826498,145.32,145.28,8.452e-05]
[1740766203922,6.93036498,145.32,145.28,8.452e-05]
[1740766204807,0.04826498,145.32,145.28,8.452e-05]
[1740766205414,6.8828,145.3,145.29,6.916e-05]
[1740766206209,6.8833,145.29,145.28,12.91946538]
[1740766206404,13.26,145.29,145.26,76.56191321]
[1740766206609,1.37665198,145.28,145.26,66.22071321]
[1740766206811,1.37665198,145.28,145.23,13.09368662]
[1740766207310,6.8857,145.24,145.23,9.55408662]
[1740766207509,20.1457,145.24,145.23,9.55408662]
[1740766209313,6.8861,145.23,145.22,0.04536083]
[1740766209708,0.04417474,145.24,145.22,0.04536083]
[1740766210315,14.63665198,145.28,145.22,0.04536083]
[1740766210512,1.37674674,145.27,145.22,0.04536083]
[1740766211311,1.37674674,145.27,145.23,6.8858]
[1740766211621,1.37674674,145.27,145.22,0.04536083]
[1740766212723,1.37674674,145.27,145.22,6.93186083]
[1740766213814,1.37674674,145.27,145.22,0.04536083]
[1740766215421,8.26104674,145.27,145.22,0.04536083]
[1740766219125,6.885,145.26,145.22,0.04536083]
[1740766219324,1.37693631,145.25,145.22,0.04536083]
[1740766223430,1.37693631,145.25,145.22,6.93186083]
[1740766224625,1.37693631,145.25,145.22,0.04536083]
[1740766229430,1.37693631,145.25,145.23,7.8617672]
[1740766229932,1.37693631,145.25,145.22,0.04536083]
[1740766229933,1.37693631,145.25,145.24,14.7474672]
[1740766230630,1.37693631,145.25,145.24,7.8617672]
[1740766231829,8.26213631,145.25,145.24,7.8617672]
[1740766232026,8.26213631,145.25,145.24,39.31968016]
[1740766232328,1.37693631,145.25,145.24,39.31968016]
[1740766232922,8.26213631,145.25,145.24,39.31968016]
[1740766233531,1.37693631,145.25,145.24,39.31968016]
[1740766234331,1.37693631,145.25,145.22,0.04536083]
[1740766235632,1.37693631,145.25,145.23,7.87183776]
[1740766237031,1.37693631,145.25,145.22,28.75552509]
[1740766237436,8.26253631,145.25,145.22,28.75552509]
[1740766237938,1.37693631,145.25,145.22,28.75552509]
[1740766238237,6.8857,145.24,145.22,28.75552509]
[1740766238436,1.37693631,145.25,145.22,28.75552509]
[1740766239337,8.26233631,145.25,145.22,28.75552509]
[1740766239538,1.37693631,145.25,145.22,28.75552509]
[1740766240538,1.37693631,145.25,145.23,7.88138344]
[1740766240836,8.26213631,145.25,145.23,7.88138344]
[1740766242739,1.37693631,145.25,145.23,7.88138344]
[1740766242941,1.37693631,145.25,145.24,7.88138344]
[1740766246440,1.37693631,145.25,145.24,68.14662134]
[1740766248243,1.37693631,145.25,145.24,163.19899203]
[1740766250848,220.26,145.33,145.24,166.63899203]
[1740766251141,220.26,145.33,145.25,3.7289]
[1740766251343,220.26,145.33,145.27,0.04721853]
[1740766251946,220.26,145.33,145.27,28.79835847]
[1740766252651,6.8835,145.29,145.27,28.79835847]
[1740766253048,220.26,145.33,145.27,28.79835847]
[1740766253646,220.26,145.33,145.28,7.88138344]
[1740766254748,6.8832,145.3,145.28,7.88138344]
[1740766255251,6.8824,145.31,145.28,7.88138344]
[1740766255449,6.8824,145.31,145.27,28.79835847]
[1740766255951,220.26,145.33,145.27,28.79835847]
[1740766256153,6.8821,145.32,145.27,28.79835847]
[1740766256451,220.26,145.33,145.27,28.79835847]
[1740766256653,6.8833,145.29,145.27,28.79835847]
[1740766257148,220.32,145.42,145.27,224.23835847]
[1740766257341,225.35922664,145.42,145.28,1.396]
[1740766257548,232.23662664,145.42,145.33,0.05047401]
[1740766257850,232.23662664,145.42,145.29,205.24]
[1740766258048,225.35922664,145.42,145.36,0.04565203]
[1740766258952,6.8782,145.4,145.36,0.04565203]
[1740766259153,225.35922664,145.42,145.36,0.04565203]
[1740766259454,1.37542122,145.41,145.36,0.04565203]
[1740766260651,13.22,145.4,145.34,28.75113994]
[1740766260855,13.26494912,145.4,145.34,28.75113994]
[1740766261049,13.26494912,145.4,145.32,60.17542885]
[1740766261253,6.8803,145.36,145.32,60.17542885]
[1740766261454,1.37561042,145.39,145.32,60.17542885]
[1740766261956,6.8803,145.36,145.34,0.05096514]
[1740766264245,6.8804,145.35,145.28,41.97113994]
[1740766265056,3.659,145.36,145.29,7.84108386]
[1740766265457,0.04445077,145.34,145.31,0.04854539]
[1740766265658,6.92535077,145.34,145.31,0.04854539]
[1740766265857,0.04445077,145.34,145.31,0.04854539]
[1740766266458,1.42053443,145.34,145.31,0.04854539]
[1740766266658,6.8828,145.3,145.29,7.84108386]
[1740766267248,1.37608366,145.34,145.28,9.52442783]
[1740766267458,6.8833,145.29,145.28,9.52442783]
[1740766269459,0.05062492,145.3,145.27,0.05040896]
[1740766269460,6.93362492,145.3,145.27,0.05040896]
[1740766269957,0.05062492,145.3,145.27,0.05040896]
[1740766270159,6.8836,145.29,145.27,0.05040896]